bitfinex-derivatives/quotes_SOLF0:USTF0_20240823
["timestamp","ask_amount","ask_price","bid_price","bid_amount"]
[1724448639916,0.04764032,151.48,151.44,0.04837466]
[1724448639917,30.37,151.45,151.44,0.04837466]
[1724448640920,33.6684,151.45,151.44,0.04837466]
[1724448645021,3.2991,151.42,151.37,3.3001]
[1724448645521,30.37,151.38,151.27,226.0]
[1724448645718,3.33538692,151.39,151.28,8.0012]
[1724448645922,30.37,151.37,151.28,5.2944]
[1724448646118,0.04533034,151.35,151.32,0.04946275]
[1724448646318,0.04533034,151.35,151.32,3.35066275]
[1724448647127,0.04533034,151.35,151.32,0.04946275]
[1724448649928,3.34593034,151.35,151.32,0.04946275]
[1724448651230,0.04533034,151.35,151.32,0.04946275]
[1724448652026,0.04533034,151.35,151.33,3.3009]
[1724448652830,0.04533034,151.35,151.32,0.04946275]
[1724448654334,0.04533034,151.35,151.32,3.35066275]
[1724448654831,0.04533034,151.35,151.33,3.301]
[1724448655422,0.04533034,151.35,151.34,3.3008]
[1724448656429,0.04533034,151.35,151.32,3.35066275]
[1724448656626,0.04533034,151.35,151.32,0.04946275]
[1724448658040,0.04533034,151.35,151.33,3.301]
[1724448658430,0.04533034,151.35,151.34,3.3008]
[1724448660031,33.6699,151.39,151.34,3.3008]
[1724448660234,3.2999,151.39,151.34,3.3008]
[1724448660433,30.37,151.4,151.35,3.3006]
[1724448661031,0.04340838,151.39,151.36,3.34739926]
[1724448661233,0.04340838,151.39,151.36,0.04709926]
[1724448661540,30.41340838,151.39,151.36,0.04709926]
[1724448662142,3.2999,151.38,151.36,0.04709926]
[1724448662836,30.41340838,151.39,151.36,0.04709926]
[1724448662837,33.6702,151.37,151.36,0.04709926]
[1724448664147,30.37,151.37,151.36,0.04709926]
[1724448664436,3.3,151.38,151.36,0.04709926]
[1724448664845,30.37,151.37,151.36,0.04709926]
[1724448665543,33.6702,151.37,151.36,0.04709926]
[1724448684657,3.3002,151.37,151.36,0.04709926]
[1724448684863,0.04340838,151.39,151.36,0.04709926]
[1724448685063,0.04340838,151.39,151.37,3.3001]
[1724448685361,0.04340838,151.39,151.36,0.04709926]
[1724448685754,0.04340838,151.39,151.37,3.3001]
[1724448692682,0.04340838,151.39,151.38,3.2999]
[1724448693670,30.37,151.5,151.38,30.37]
[1724448693869,30.37,151.5,151.39,3.25247374]
[1724448694068,30.37,151.5,151.38,30.37]
[1724448694269,30.37,151.5,151.41,30.37]
[1724448694467,0.04822211,151.47,151.44,0.04832136]
[1724448694672,0.04822211,151.47,151.45,3.2982]
[1724448694869,0.04822211,151.47,151.44,0.04832136]
[1724448695675,0.04822211,151.47,151.46,3.2982]
[1724448696181,30.37,151.53,151.44,0.04832136]
[1724448696372,3.2969,151.52,151.48,3.2975]
[1724448697279,3.2971,151.51,151.48,0.04665227]
[1724448697782,3.2975,151.49,151.48,0.04665227]
[1724448698178,33.6675,151.49,151.48,0.04665227]
[1724448698378,0.04442734,151.52,151.48,0.04665227]
[1724448698577,30.37,151.51,151.48,0.04665227]
[1724448698974,33.6672,151.51,151.48,0.04665227]
[1724448699484,30.37,151.51,151.48,0.04665227]
[1724448699678,0.04442734,151.52,151.48,0.04665227]
[1724448701482,3.2972,151.51,151.48,0.04665227]
[1724448701878,0.04442734,151.52,151.48,0.04665227]
[1724448702680,3.2973,151.51,151.48,0.04665227]
[1724448703483,0.04442734,151.52,151.48,0.04665227]
[1724448704980,3.34132734,151.52,151.48,0.04665227]
[1724448706289,0.04442734,151.52,151.48,3.34435227]
[1724448706488,0.04442734,151.52,151.48,0.04665227]
[1724448706489,27.84,151.49,151.48,0.04665227]
[1724448706682,3.298,151.47,151.38,27.84]
[1724448707181,3.2984,151.45,151.4,3.2993]
[1724448707783,0.04477711,151.44,151.41,0.04331175]
[1724448707988,0.04477711,151.44,151.41,3.34251175]
[1724448708891,0.04477711,151.44,151.41,0.04331175]
[1724448709087,3.34347711,151.44,151.41,0.04331175]
[1724448709985,3.2989,151.43,151.41,0.04331175]
[1724448710182,0.04477711,151.44,151.41,0.04331175]
[1724448710589,27.84,151.43,151.41,0.04331175]
[1724448710989,3.299,151.42,151.41,0.04331175]
[1724448711490,27.84,151.43,151.31,231.3782]
[1724448711686,27.84,151.4,151.32,2.687]
[1724448712087,3.3004,151.36,151.32,5.9882]
[1724448712286,0.0507711,151.36,151.32,2.73088776]
[1724448712990,3.3512711,151.36,151.32,6.03198776]
[1724448716690,0.0507711,151.36,151.33,3.3009]
[1724448717190,3.3511711,151.36,151.33,3.3009]
[1724448717689,3.3511711,151.36,151.32,6.03208776]
[1724448717886,27.8907711,151.36,151.32,0.04388776]
[1724448719088,3.3008,151.34,151.32,0.04388776]
[1724448722492,3.3007,151.35,151.32,0.04388776]
[1724448722691,0.0507711,151.36,151.32,0.04388776]
[1724448723098,3.3006,151.35,151.32,0.04388776]
[1724448723698,3.3008,151.34,151.32,0.04388776]
[1724448723899,0.0507711,151.36,151.32,0.04388776]
[1724448724294,3.3006,151.35,151.32,0.04388776]
[1724448724692,0.0507711,151.36,151.32,0.04388776]
[1724448724898,3.3511711,151.36,151.32,0.04388776]
[1724448725295,3.3511711,151.36,151.32,3.34488776]
[1724448726099,0.0507711,151.36,151.32,0.04388776]
[1724448726593,0.0507711,151.36,151.34,3.3006]
[1724448727401,0.0507711,151.36,151.32,3.34508776]
[1724448729209,0.0507711,151.36,151.33,3.301]
[1724448729504,3.3511711,151.36,151.32,0.04388776]
[1724448729903,3.3511711,151.36,151.32,3.34498776]
[1724448732415,3.3511711,151.36,151.33,3.301]
[1724448732606,3.3511711,151.36,151.32,0.04388776]
[1724448732808,0.0507711,151.36,151.32,0.04388776]
[1724448733010,0.0507711,151.36,151.33,3.3008]
[1724448733605,3.3511711,151.36,151.33,3.3008]
[1724448734008,3.3511711,151.36,151.32,3.34508776]
[1724448735007,3.3511711,151.36,151.32,0.04388776]
[1724448735008,3.3006,151.35,151.32,0.04388776]
[1724448736316,0.0507711,151.36,151.32,3.34498776]
[1724448737215,0.0507711,151.36,151.32,0.04388776]
[1724448738721,0.0507711,151.36,151.34,3.3006]
[1724448740924,0.0507711,151.36,151.32,0.04388776]
[1724448740925,0.0507711,151.36,151.35,3.3006]
[1724448742122,0.0507711,151.36,151.34,3.3007]
[1724448744723,0.0507711,151.36,151.32,0.04388776]
[1724448744724,0.0507711,151.36,151.33,3.3009]
[1724448745524,3.3511711,151.36,151.33,3.3009]
[1724448745718,3.3511711,151.36,151.32,3.34498776]
[1724448746524,3.3007,151.35,151.32,3.34498776]
[1724448747220,3.3512711,151.36,151.33,3.301]
[1724448747815,0.0507711,151.36,151.33,3.301]
[1724448749328,3.3512711,151.36,151.33,3.301]
[1724448750224,0.0507711,151.36,151.32,0.04388776]
[1724448750827,0.0507711,151.36,151.35,3.3006]
[1724448751424,30.5213,151.44,151.33,33.2719]
[1724448751925,3.2995,151.4,151.33,33.2719]
[1724448752329,0.04213219,151.38,151.35,0.04564101]
[1724448753329,0.04213219,151.38,151.37,3.3001]
[1724448763244,0.04213219,151.38,151.35,0.04564101]
[1724448764048,0.04213219,151.38,151.36,3.3003]
[1724448764845,3.34223219,151.38,151.35,3.34614101]
[1724448765851,0.04213219,151.38,151.35,0.04564101]
[1724448766344,0.04213219,151.38,151.36,3.3003]
[1724448767248,0.04213219,151.38,151.35,3.34614101]
[1724448768049,0.04213219,151.38,151.36,3.3003]
[1724448768446,0.04213219,151.38,151.35,3.34614101]
[1724448768844,31.1903,151.36,151.35,0.04564101]
[1724448769650,34.50600343,151.36,151.35,0.04564101]
[1724448769849,31.1903,151.36,151.35,0.04564101]
[1724448770356,0.04213219,151.38,151.35,0.04564101]
[1724448771348,3.34203219,151.38,151.35,0.04564101]
[1724448771651,3.27709024,151.37,151.35,0.04564101]
[1724448771858,31.1903,151.36,151.35,0.04564101]
[1724448772158,27.89,151.36,151.35,0.04564101]
[1724448772352,3.33187342,151.37,151.35,0.04564101]
[1724448772548,27.89,151.36,151.35,0.04564101]
[1724448774551,6.52491719,151.37,151.35,0.04564101]
[1724448774757,27.89,151.36,151.35,0.04564101]
[1724448776951,31.1903,151.36,151.35,0.04564101]
[1724448777556,3.3003,151.36,151.35,0.04564101]
[1724448777755,31.1903,151.36,151.35,0.04564101]
[1724448780254,27.89,151.36,151.35,0.04564101]
[1724448783757,6.52263162,151.37,151.35,0.04564101]
[1724448783952,34.41263162,151.37,151.35,0.04564101]
[1724448784553,31.1902,151.37,151.35,0.04564101]
[1724448784954,34.52404983,151.37,151.35,0.04564101]
[1724448785354,0.04213219,151.38,151.35,0.04564101]
[1724448785763,27.93213219,151.38,151.35,0.04564101]
[1724448786861,27.93213219,151.38,151.35,3.34604101]
[1724448787053,27.93213219,151.38,151.35,0.04564101]
[1724448787761,31.23203219,151.38,151.35,3.34604101]
[1724448787964,27.89,151.37,151.35,3.34604101]
[1724448789360,27.89,151.37,151.36,3.3003]
[1724448789858,0.04213219,151.38,151.36,3.3003]
[1724448790058,0.04213219,151.38,151.37,3.3001]
[1724448790663,0.04213219,151.38,151.36,3.3002]
[1724448793865,27.89,151.37,151.35,0.04564101]
[1724448794363,31.1903,151.37,151.35,0.04564101]
[1724448794665,27.9,151.36,151.35,0.04564101]
[1724448795762,27.9,151.36,151.35,3.34614101]
[1724448796469,27.9,151.36,151.35,0.04564101]
[1724448797868,27.9,151.36,151.26,2.7837]
[1724448798066,27.9,151.32,151.26,2.7837]
[1724448798774,0.04358278,151.31,151.3,3.3016]
[1724448799170,3.3018,151.3,151.27,0.0449483]
[1724448799470,27.9,151.29,151.27,0.0449483]
[1724448799862,27.9,151.29,151.27,3.3471483]
[1724448800666,27.9,151.29,151.27,0.0449483]
[1724448801266,27.9,151.28,151.27,0.0449483]
[1724448802158,31.2021,151.28,151.27,0.0449483]
[1724448802363,27.9,151.28,151.27,0.0449483]
[1724448803465,31.2021,151.28,151.22,26.4]
[1724448804268,27.9,151.28,151.25,3.3027]
[1724448804564,0.04433196,151.28,151.25,3.3514902]
[1724448804766,27.9,151.27,151.25,3.3514902]
[1724448805566,27.9,151.27,151.25,0.0487902]
[1724448806064,27.9,151.27,151.25,3.3514902]
[1724448806465,27.9,151.27,151.25,0.0487902]
[1724448807073,3.3025,151.26,151.25,0.0487902]
[1724448807378,27.9,151.27,151.19,5.4178]
[1724448807562,27.9,151.23,151.19,5.4178]
[1724448807765,27.9,151.23,151.13,30.6764]
[1724448807973,27.9,151.23,151.14,1.21390904]
[1724448808361,0.0482614,151.2,151.17,0.04763939]
[1724448809174,0.0482614,151.2,151.18,3.3042]
[1724448812675,0.0482614,151.2,151.17,3.35193939]
[1724448812874,0.0482614,151.2,151.17,0.04763939]
[1724448814371,0.0482614,151.2,151.18,3.3043]
[1724448814777,0.0482614,151.2,151.17,3.35203939]
[1724448815374,0.0482614,151.2,151.19,3.304]
[1724448817481,0.0482614,151.2,151.18,3.3042]
[1724448817775,27.92,151.19,151.13,8.3534]
[1724448817967,27.92,151.17,151.13,8.3534]
[1724448818170,27.92,151.17,151.14,3.3051]
[1724448818779,27.96868065,151.17,151.14,3.34731859]
[1724448819668,27.96868065,151.17,151.14,0.04221859]
[1724448820070,31.27318065,151.17,151.14,0.04221859]
[1724448820675,27.96868065,151.17,151.14,0.04221859]
[1724448821777,31.27328065,151.17,151.14,0.04221859]
[1724448822181,27.96868065,151.17,151.14,0.04221859]
[1724448823377,3.3047,151.16,151.14,0.04221859]
[1724448823982,27.96868065,151.17,151.14,0.04221859]
[1724448824379,31.27318065,151.17,151.14,0.04221859]
[1724448824881,27.92,151.15,151.14,0.04221859]
[1724448825082,27.92,151.15,151.1,3.3058]
[1724448825472,31.2254,151.13,151.09,3.3062]
[1724448826184,31.26999215,151.13,151.09,3.35164466]
[1724448827875,3.3056,151.12,151.09,3.35164466]
[1724448828473,3.3056,151.12,151.09,0.04544466]
[1724448829181,3.3058,151.11,151.09,0.04544466]
[1724448829581,27.96459215,151.13,151.09,0.04544466]
[1724448830686,3.3056,151.12,151.09,0.04544466]
[1724448830880,27.92,151.11,151.09,0.04544466]
[1724448831682,27.92,151.11,151.01,7.9872]
[1724448831683,3.3061,151.1,151.01,7.9872]
[1724448831878,27.92,151.08,151.01,7.9872]
[1724448832087,27.92,151.08,151.01,11.34430556]
[1724448832592,0.04668454,151.06,151.03,0.04309859]
[1724448833583,0.04668454,151.06,151.05,3.3071]
[1724448837988,3.32746592,151.12,151.09,3.3062]
[1724448838285,27.92,151.13,151.09,3.3062]
[1724448838286,31.22851459,151.13,151.09,3.3062]
[1724448838492,34.53391459,151.13,151.09,3.3062]
[1724448838885,27.97023038,151.13,151.09,3.35345304]
[1724448839285,0.05023038,151.13,151.09,0.04725304]
[1724448839692,0.05023038,151.13,151.11,3.3057]
[1724448841691,0.05023038,151.13,151.09,0.04725304]
[1724448842199,27.92,151.21,151.12,27.92]
[1724448842897,8.0684,151.25,151.08,5.5934]
[1724448842898,35.9884,151.25,151.15,27.92]
[1724448843094,27.92,151.2,151.08,5.5934]
[1724448843299,27.92,151.2,151.16,3.3045]
[1724448843794,0.04395168,151.2,151.16,0.048364]
[1724448844191,0.04395168,151.2,151.16,5.641764]
[1724448845397,0.04395168,151.2,151.19,3.304]
[1724448845697,0.04395168,151.2,151.16,5.641764]
[1724448846498,0.04395168,151.2,151.18,3.3041]
[1724448846898,0.04395168,151.2,151.16,5.641764]
[1724448847099,0.04395168,151.2,151.19,3.304]
[1724448847597,0.04395168,151.2,151.16,5.641764]
[1724448847991,0.04395168,151.2,151.18,3.3041]
[1724448849901,0.04395168,151.2,151.16,0.048364]
[1724448849902,27.96395168,151.2,151.16,0.048364]
[1724448850705,27.96395168,151.2,151.16,3.352964]
[1724448851401,27.96395168,151.2,151.17,3.3044]
[1724448852511,27.96395168,151.2,151.16,3.352964]
[1724448853392,31.26775168,151.2,151.16,3.352964]
[1724448853600,27.96395168,151.2,151.17,3.3045]
[1724448853993,27.96395168,151.2,151.16,0.048364]
[1724448855294,31.26795168,151.2,151.16,3.352864]
[1724448856698,3.3041,151.19,151.16,3.352864]
[1724448857094,0.04395168,151.2,151.16,0.048364]
[1724448857298,0.04395168,151.2,151.16,8.020064]
[1724448857695,0.04395168,151.2,151.17,27.92]
[1724448858308,0.04395168,151.2,151.19,3.304]
[1724448859598,5.4121,151.3,151.17,27.92]
[1724448859809,5.4121,151.3,151.19,27.92]
[1724448860002,95.68682855,151.31,151.19,27.92]
[1724448860710,0.04339575,151.27,151.26,3.3025]
[1724448863804,27.92,151.33,151.25,0.04885226]
[1724448864912,0.0504313,151.31,151.25,0.04885226]
[1724448865112,0.0504313,151.31,151.3,3.3016]
[1724448875014,0.0504313,151.31,151.29,3.34459023]
[1724448875220,0.0504313,151.31,151.29,0.04279023]
[1724448876322,0.0504313,151.31,151.3,3.3016]
[1724448881824,0.0504313,151.31,151.29,0.04279023]
[1724448882528,0.0504313,151.31,151.29,3.34459023]
[1724448882937,3.3518313,151.31,151.29,0.04279023]
[1724448883336,27.92,151.3,151.29,0.04279023]
[1724448883728,0.0504313,151.31,151.29,3.34469023]
[1724448883929,0.0504313,151.31,151.29,0.04279023]
[1724448884137,0.0504313,151.31,151.29,27.96279023]
[1724448884634,0.0504313,151.31,151.3,3.3016]
[1724448884835,2.6025,151.42,151.29,27.92]
[1724448885041,34.54700251,151.41,151.31,27.92]
[1724448885240,3.23240177,151.4,151.31,27.92]
[1724448885737,0.04206909,151.37,151.34,0.04724123]
[1724448886429,0.04206909,151.37,151.35,3.3004]
[1724448887934,0.04206909,151.37,151.36,3.3003]
[1724448889041,0.04206909,151.37,151.35,3.3005]
[1724448890436,0.04206909,151.37,151.34,3.34804123]
[1724448893752,0.04206909,151.37,151.35,3.3005]
[1724448894644,27.96206909,151.37,151.34,0.04724123]
[1724448895240,27.96206909,151.37,151.34,3.34784123]
[1724448895837,27.96206909,151.37,151.35,3.3005]
[1724448897940,0.04206909,151.37,151.34,0.04724123]
[1724448898748,0.04206909,151.37,151.36,3.3003]
[1724448903749,27.96206909,151.37,151.34,0.04724123]
[1724448904051,27.92,151.35,151.34,0.04724123]
[1724448908847,3.3003,151.36,151.34,0.04724123]
[1724448909054,27.92,151.35,151.34,0.04724123]
[1724448909253,31.2205,151.35,151.34,0.04724123]
[1724448911759,0.04206909,151.37,151.34,0.04724123]
[1724448912059,27.92,151.36,151.34,0.04724123]
[1724448912354,27.92,151.36,151.35,3.3005]
[1724448913248,27.92,151.36,151.34,3.34794123]
[1724448913850,0.04206909,151.37,151.35,3.3005]
[1724448914050,27.96206909,151.37,151.35,3.3005]
[1724448914456,0.04206909,151.37,151.34,0.04724123]
[1724448915157,0.04206909,151.37,151.35,3.3004]
[1724448916052,0.04206909,151.37,151.36,3.3003]
[1724448916460,0.04206909,151.37,151.34,0.04724123]
[1724448917657,0.04206909,151.37,151.35,3.3004]
[1724448918158,0.04206909,151.37,151.35,3.3005]
[1724448918354,0.04206909,151.37,151.34,0.04724123]
[1724448918748,0.04206909,151.37,151.36,3.3003]
[1724448920354,0.04206909,151.37,151.35,3.3005]
[1724448920855,27.92,151.36,151.35,3.3005]
[1724448921056,3.34216909,151.37,151.34,0.04724123]
[1724448921256,27.92,151.35,151.34,0.04724123]
[1724448922255,3.34216909,151.37,151.34,0.04724123]
[1724448922457,27.92,151.36,151.34,0.04724123]
[1724448924158,0.04206909,151.37,151.34,3.34794123]
[1724448924858,27.96206909,151.37,151.34,3.34794123]
[1724448925460,27.96206909,151.37,151.34,0.04724123]
[1724448926762,31.26236909,151.37,151.34,0.04724123]
[1724448927969,3.3004,151.36,151.34,0.04724123]
[1724448928564,27.92,151.35,151.34,0.04724123]
[1724448935269,0.04206909,151.37,151.34,0.04724123]
[1724448935773,31.2205,151.35,151.34,0.04724123]
[1724448941480,3.3009,151.34,151.27,2.6588]
[1724448941681,27.92,151.33,151.27,2.6588]
[1724448942278,3.33275006,151.35,151.27,2.6588]
[1724448942479,0.04227534,151.33,151.29,0.05013297]
[1724448942980,0.04227534,151.33,151.3,3.3016]
[1724448943386,3.34337534,151.33,151.29,3.35183297]
[1724448944079,31.26337534,151.33,151.29,3.35183297]
[1724448952088,27.92,151.3,151.22,26.4]
[1724448952486,3.302,151.29,151.25,3.3026]
[1724448953087,3.35064983,151.29,151.26,3.3025]
[1724448954182,0.04864983,151.29,151.26,3.3025]
[1724448955783,27.92,151.28,151.26,3.3025]
[1724448958589,0.04864983,151.29,151.26,3.3025]
[1724448961195,0.04864983,151.29,151.27,3.3023]
[1724448961598,3.35054983,151.29,151.26,3.3024]
[1724448961794,0.04864983,151.29,151.26,3.3024]
[1724448962599,0.04864983,151.29,151.27,3.3023]
[1724448963794,0.04864983,151.29,151.25,0.04280096]
[1724448963795,0.04864983,151.29,151.28,3.3021]
[1724448964194,45.82246667,151.43,151.26,27.92]
[1724448964195,27.92,151.36,151.26,27.92]
[1724448964397,27.92,151.36,151.25,0.04280096]
[1724448964398,27.92,151.39,151.29,27.92]
[1724448965098,3.3003,151.36,151.33,3.3008]
[1724448965396,3.34530455,151.36,151.33,3.34528597]
[1724448966400,0.04500455,151.36,151.35,3.3005]
[1724448969399,3.2993,151.41,151.37,3.3]
[1724448970505,3.34938159,151.41,151.37,3.34319286]
[1724448971296,0.05008159,151.41,151.37,0.04319286]
[1724448971899,0.05008159,151.41,151.4,3.2995]
[1724448973203,99.05945761,151.47,151.44,3.2985]
[1724448973402,71.13945761,151.47,151.44,3.2985]
[1724448973599,71.13945761,151.47,151.38,27.92]
[1724448974303,0.0450868,151.44,151.41,0.04248138]
[1724448974701,0.0450868,151.44,151.43,3.2988]
[1724448974898,12.27536917,151.83,151.43,27.92]
[1724448974899,2.59,151.55,151.43,27.92]
[1724448975102,2.59,151.55,151.36,5.4854]
[1724448975103,30.51,151.55,151.45,27.92]
[1724448975397,27.92,151.55,151.45,27.92]
[1724448975601,27.92,151.55,151.46,2.6426]
[1724448976104,0.04323168,151.52,151.49,0.04585541]
[1724448977212,0.04323168,151.52,151.5,3.2973]
[1724448977604,0.04323168,151.52,151.49,3.34325541]
[1724448978407,0.04323168,151.52,151.49,0.04585541]
[1724448979208,23.35127383,151.76,151.51,27.92]
[1724448979413,27.92,151.62,151.51,27.92]
[1724448980307,3.33787305,151.58,151.55,0.05031785]
[1724448981613,27.92,151.62,151.55,0.05031785]
[1724448982615,0.05064731,151.6,151.55,0.05031785]
[1724448983308,3.2954,151.59,151.55,3.34641785]
[1724448984121,3.2956,151.58,151.55,0.05031785]
[1724448984311,0.05064731,151.6,151.55,0.05031785]
[1724448984513,27.97064731,151.6,151.55,0.05031785]
[1724448984714,3.2957,151.58,151.55,0.05031785]
[1724448984911,3.34263535,151.59,151.55,0.05031785]
[1724448985209,0.05064731,151.6,151.55,0.05031785]
[1724448985417,3.2958,151.57,151.55,0.05031785]
[1724448986017,27.92,151.58,151.55,0.05031785]
[1724448986018,31.13280507,151.58,151.55,0.05031785]
[1724448986321,27.92,151.58,151.55,0.05031785]
[1724448986517,3.296,151.57,151.55,0.05031785]
[1724448987614,3.296,151.56,151.55,0.05031785]
[1724448988123,27.92,151.58,151.55,0.05031785]
[1724448988619,3.2959,151.57,151.55,0.05031785]
[1724448989119,27.92,151.58,151.55,0.05031785]
[1724448989320,3.2958,151.57,151.55,0.05031785]
[1724448990321,3.296,151.56,151.55,0.05031785]
[1724448994431,3.2965,151.54,151.5,3.2972]
[1724448994929,27.92,151.57,151.51,3.297]
[1724448995531,0.04305464,151.56,151.52,0.04184781]
[1724448995920,3.2964,151.55,151.52,0.04184781]
[1724448996121,0.04305464,151.56,151.52,0.04184781]
[1724448996726,3.2962,151.55,151.52,0.04184781]
[1724448996925,0.04305464,151.56,151.52,0.04184781]
[1724448997128,27.92,151.55,151.52,0.04184781]
[1724448997527,3.2966,151.53,151.52,0.04184781]
[1724448997722,27.92,151.53,151.43,30.6589]
[1724448998126,3.2973,151.5,151.46,3.298]
[1724448998830,3.41546213,151.5,151.46,0.04542439]
[1724448999034,0.04777598,151.5,151.46,0.04542439]
[1724448999334,3.2976,151.49,151.46,0.04542439]
[1724449000122,3.28725407,151.5,151.46,0.04542439]
[1724449000321,0.04777598,151.5,151.46,0.04542439]
[1724449000824,3.2976,151.49,151.46,0.04542439]
[1724449001831,3.2977,151.48,151.46,0.04542439]
[1724449002033,0.04777598,151.5,151.46,0.04542439]
[1724449002533,3.2976,151.49,151.46,0.04542439]
[1724449003325,3.2978,151.48,151.46,0.04542439]
[1724449004034,3.2979,151.47,151.46,0.04542439]
[1724449004930,3.2979,151.47,151.38,26.36]
[1724449004931,27.92,151.48,151.38,26.36]
[1724449005132,27.92,151.46,151.38,26.36]
[1724449005328,27.92,151.46,151.4,3.2994]
[1724449006029,0.04299117,151.45,151.41,3.3442859]
[1724449007238,0.04299117,151.45,151.42,3.299]
[1724449007832,0.04299117,151.45,151.41,0.0450859]
[1724449008433,0.04299117,151.45,151.42,3.2989]
[1724449009834,0.04299117,151.45,151.41,0.0450859]
[1724449010436,0.04299117,151.45,151.43,3.2986]
[1724449011444,0.04299117,151.45,151.44,3.2986]
[1724449016653,0.04299117,151.45,151.41,0.0450859]
[1724449018048,0.04299117,151.45,151.44,3.2986]
[1724449023755,27.92,151.53,151.48,3.2976]
[1724449023958,27.92,151.53,151.44,27.92]
[1724449024253,27.92,151.55,151.44,27.92]
[1724449024558,0.04251884,151.51,151.47,0.04235416]
[1724449026159,0.04251884,151.51,151.5,3.2971]
[1724449026758,0.04251884,151.51,151.48,3.2975]
[1724449026954,0.04251884,151.51,151.47,0.04235416]
[1724449026955,27.92,151.5,151.47,0.04235416]
[1724449027459,3.2977,151.49,151.47,0.04235416]
[1724449027660,27.92,151.5,151.47,0.04235416]
[1724449027851,31.2174,151.5,151.47,0.04235416]
[1724449028055,27.92,151.5,151.47,3.34015416]
[1724449028355,27.92,151.5,151.47,0.04235416]
[1724449029657,3.2976,151.49,151.47,0.04235416]
[1724449031358,27.92,151.48,151.47,0.04235416]
[1724449035568,31.2175,151.49,151.47,0.04235416]
[1724449035763,27.92,151.49,151.47,0.04235416]
[1724449036364,3.2977,151.48,151.47,0.04235416]
[1724449036567,27.92,151.49,151.47,0.04235416]
[1724449038369,31.2176,151.49,151.47,0.04235416]
[1724449038769,3.2976,151.49,151.47,0.04235416]
[1724449038965,27.92,151.48,151.47,0.04235416]
[1724449039872,31.2177,151.48,151.41,2.8011]
[1724449040073,27.92,151.46,151.41,2.8011]
[1724449040269,27.92,151.46,151.44,3.2985]
[1724449044876,0.04346106,151.47,151.45,3.2983]
[1724449045071,0.04346106,151.47,151.43,0.04508557]
[1724449045283,0.04346106,151.47,151.45,3.2982]
[1724449047277,0.04346106,151.47,151.46,3.2981]
[1724449076198,94.2984579,151.54,151.43,27.92]
[1724449077087,94.2984579,151.54,151.5,3.2972]
[1724449077294,94.34188361,151.54,151.5,3.34576812]
[1724449079006,3.2967,151.53,151.5,3.34576812]
[1724449080504,27.92,151.51,151.5,0.04856812]
[1724449081101,31.2171,151.51,151.5,0.04856812]
[1724449082709,27.92,151.51,151.5,0.04856812]
[1724449082899,27.92,151.51,151.5,3.34586812]
[1724449085205,94.34208361,151.54,151.51,3.297]
[1724449085504,55.84,151.52,151.42,3.03185161]
[1724449085710,27.92,151.46,151.42,3.03185161]
[1724449086410,27.92,151.46,151.44,3.2985]
[1724449086411,27.96673671,151.46,151.44,3.2985]
[1724449088508,27.96673671,151.46,151.42,3.07447176]
[1724449088509,27.96673671,151.46,151.43,3.2987]
[1724449090511,27.96673671,151.46,151.42,6.37347176]
[1724449090713,31.26493671,151.46,151.42,6.37347176]
[1724449091313,27.96673671,151.46,151.42,6.37347176]
[1724449091714,27.96673671,151.46,151.43,3.2988]
[1724449093509,31.26493671,151.46,151.42,0.04262015]
[1724449093714,27.96673671,151.46,151.42,0.04262015]
[1724449094315,31.26493671,151.46,151.42,3.34152015]
[1724449096114,27.96673671,151.46,151.43,3.2988]
[1724449097612,0.04673671,151.46,151.44,3.2985]
[1724449097915,0.04673671,151.46,151.42,0.04262015]
[1724449098111,0.04673671,151.46,151.45,3.2984]
[1724449101420,0.04673671,151.46,151.44,3.2985]
[1724449102514,0.04673671,151.46,151.45,3.2984]
[1724449104014,27.92,151.54,151.45,1.21148602]
[1724449104223,27.92,151.54,151.43,2.6776]
[1724449104224,27.92,151.54,151.43,5.2645]
[1724449104518,27.92,151.54,151.44,1.2115004]
[1724449104718,31.2166,151.54,151.49,3.2973]
[1724449104913,31.2166,151.54,151.5,0.04221991]
[1724449104914,0.04317598,151.53,151.5,0.04221991]
[1724449107019,27.92,151.52,151.5,0.04221991]
[1724449113918,3.33987598,151.53,151.5,0.04221991]